bitfinex-derivatives/quotes_ETHF0:USTF0_20210405
["timestamp","ask_amount","ask_price","bid_price","bid_amount"]
[1617650449109,6.54975,2103.6,2103.5,5.78]
[1617650449509,5.59015,2103.6,2103.5,5.78]
[1617650449709,5.61803445,2103.6,2103.5,5.78]
[1617650450711,5.64591957,2103.6,2103.5,5.78]
[1617650451512,5.64591957,2103.6,2102.5,2.90695]
[1617650451714,30.0,2103.4,2101.7,2.0]
[1617650452113,0.44632229,2103.2,2103.1,5.89]
[1617650452314,0.44632229,2103.2,2102.2,0.57]
[1617650452516,2.90695,2102.3,2101.7,2.90695]
[1617650452714,77.0645,2102.1,2101.7,2.90695]
[1617650452915,4.66225,2102.3,2102.2,1.94]
[1617650453315,4.66225,2102.3,2101.8,5.79]
[1617650453515,77.0568,2102.2,2101.7,2.90695]
[1617650453915,77.0568,2102.2,2101.9,5.83]
[1617650454115,77.0568,2102.2,2101.8,5.91]
[1617650454517,2.90695,2101.9,2101.8,5.91]
[1617650455122,2.90695,2101.9,2101.8,73.0217]
[1617650455519,0.02789667,2102.8,2101.8,75.5927]
[1617650455718,0.02789667,2102.8,2101.8,78.4004]
[1617650455920,0.02789623,2102.9,2101.8,80.4004]
[1617650456520,0.02789623,2102.9,2102.3,2.90695]
[1617650456720,0.02789623,2102.9,2101.8,77.5927]
[1617650457122,0.02789608,2102.8,2101.8,77.5927]
[1617650458522,0.02789608,2102.8,2102.1,2.90695]
[1617650458924,0.02789559,2102.9,2102.2,5.81]
[1617650459328,71.3938,2103.1,2102.2,5.81]
[1617650459728,71.42164576,2103.1,2102.2,5.81]
[1617650460728,2.90695,2102.3,2102.2,5.81]
[1617650462332,0.97874576,2103.1,2102.3,64.9577]
[1617650462333,0.02784576,2103.1,2102.3,64.9577]
[1617650462532,2.93479576,2103.1,2103.0,2.90695]
[1617650462732,2.93479576,2103.1,2103.0,5.30925]
[1617650462934,0.02785288,2103.3,2103.1,64.9299]
[1617650463335,0.02784925,2103.6,2103.2,5.79]
[1617650463533,0.0278466,2103.8,2103.2,5.79]
[1617650463934,0.02784583,2103.9,2103.2,5.79]
[1617650464732,0.02784583,2103.9,2103.8,2.90695]
[1617650464934,0.02784583,2103.9,2103.8,5.02255]
[1617650465132,0.02784583,2103.9,2103.8,10.88255]
[1617650465537,0.02784583,2103.9,2103.8,7.9756]
[1617650465934,0.02784488,2104.0,2103.8,7.9756]
[1617650466334,0.05568975,2104.1,2103.8,7.9756]
[1617650466335,0.05569278,2103.9,2103.8,7.9756]
[1617650466535,0.05569278,2103.9,2103.8,5.86]
[1617650466733,2.90695,2103.9,2103.8,5.86]
[1617650466935,2.90695,2103.9,2103.1,5.7]
[1617650467134,69.3709,2103.3,2103.1,5.7]
[1617650467337,69.3709,2103.3,2103.0,5.83]
[1617650467534,69.3709,2103.3,2103.2,5.87]
[1617650467935,69.3709,2103.3,2103.1,7.9441]
[1617650468137,69.3709,2103.3,2103.2,5.91]
[1617650468737,72.27785,2103.3,2103.2,5.91]
[1617650469937,2.90695,2103.3,2103.2,5.91]
[1617650470138,0.02785243,2103.8,2103.3,71.8745]
[1617650470539,0.02784979,2104.1,2103.4,2.0]
[1617650470740,0.02784979,2104.1,2104.0,2.90695]
[1617650470937,0.02784979,2104.1,2104.0,4.71235]
[1617650470938,0.05577069,2104.1,2104.0,4.71235]
[1617650471138,0.02788425,2104.2,2104.0,10.63235]
[1617650471542,0.02788286,2104.3,2104.0,10.63235]
[1617650471939,0.0278836,2104.2,2104.0,10.63235]
[1617650472738,2.90695,2104.1,2104.0,10.63235]
[1617650475144,2.90695,2104.1,2104.0,75.55985]
[1617650477144,2.93483948,2104.1,2104.0,75.55985]
[1617650479150,2.96272895,2104.1,2104.0,7.7254]
[1617650479349,2.96272895,2104.1,2104.0,5.92]
[1617650479548,2.96272895,2104.1,2103.2,2.0]
[1617650479549,2.96272895,2104.1,2103.3,5.8]
[1617650479949,2.90695,2104.1,2104.0,5.89]
[1617650480148,2.90695,2104.1,2103.3,5.8]
[1617650480348,79.1221,2104.0,2103.3,5.8]
[1617650480549,79.1221,2104.0,2103.2,2.0]
[1617650480749,79.1221,2104.0,2103.4,2.90695]
[1617650481151,0.02789351,2103.7,2103.5,5.71]
[1617650481951,0.02789351,2103.7,2103.5,7.71]
[1617650482956,0.02790766,2103.9,2103.5,7.71]
[1617650483154,0.02790766,2103.9,2103.7,67.6619]
[1617650483354,0.02790736,2104.0,2103.8,2.0]
[1617650483553,0.02790736,2104.0,2103.9,5.71]
[1617650483753,0.02790736,2104.0,2103.9,7.71]
[1617650484153,0.02790736,2104.0,2103.9,2.0]
[1617650484354,2.93485596,2104.1,2103.9,7.89]
[1617650484857,2.93485596,2104.1,2104.0,2.90695]
[1617650485055,2.93485596,2104.1,2104.0,5.62245]
[1617650485254,2.93485596,2104.1,2104.0,11.41245]
[1617650485454,0.02790596,2104.1,2104.0,11.41245]
[1617650485654,0.02790596,2104.1,2104.0,13.41245]
[1617650485854,0.05581191,2104.2,2104.0,13.41245]
[1617650486054,0.27906124,2104.4,2104.0,13.41245]
[1617650486055,0.02790442,2104.3,2104.0,13.41245]
[1617650486655,0.02790389,2104.4,2104.3,74.2382]
[1617650486855,0.05580778,2104.5,2104.4,1.97209611]
[1617650487254,0.05580778,2104.5,2104.4,7.83209611]
[1617650487655,0.05580695,2104.6,2104.4,7.83209611]
[1617650488755,0.05577127,2104.7,2104.4,7.83209611]
[1617650488957,0.05577127,2104.7,2104.6,2.90695]
[1617650489357,0.05577127,2104.7,2104.6,8.61695]
[1617650489557,0.05577127,2104.7,2104.6,10.88815]
[1617650490558,0.05577127,2104.7,2104.6,12.86024611]
[1617650490758,3.18580633,2104.9,2104.6,12.86024611]
[1617650490759,0.05576781,2104.8,2104.6,12.86024611]
[1617650490958,2.90695,2104.9,2104.6,12.86024611]
[1617650491561,2.90695,2104.9,2104.8,66.7107]
[1617650491961,2.90695,2104.9,2104.8,72.5607]
[1617650493161,2.96271907,2104.9,2104.8,72.5607]
[1617650493862,2.90695,2104.9,2104.8,72.5607]
[1617650494261,2.96271916,2104.9,2104.8,5.85]
[1617650494663,2.96271916,2104.9,2104.7,5.82]
[1617650495064,2.90695,2104.9,2104.8,5.91]
[1617650495265,0.05576954,2104.8,2104.7,5.69]
[1617650495763,2.96272006,2104.9,2104.7,5.69]
[1617650498768,2.96272006,2104.9,2104.7,7.69]
[1617650498969,0.05577006,2104.9,2104.7,7.69]
[1617650499371,77.3189,2105.1,2104.7,7.69]
[1617650499569,0.05571057,2105.2,2104.7,7.69]
[1617650499770,0.05571057,2105.2,2104.9,66.082]
[1617650499970,0.05571057,2105.2,2104.9,70.8609]
[1617650500171,0.05571057,2105.2,2105.0,5.79]
[1617650500369,7.12,2105.3,2105.0,5.79]
[1617650500370,7.17570942,2105.3,2105.0,5.79]
[1617650500570,4.26875942,2105.3,2105.0,5.79]
[1617650500770,4.21305,2105.3,2105.0,7.79]
[1617650500970,4.21305,2105.3,2105.2,2.90695]
[1617650501374,4.21305,2105.3,2105.2,8.77695]
[1617650502474,4.21305,2105.3,2105.2,10.77695]
[1617650505777,5.17195,2105.3,2105.2,10.77695]
[1617650506178,4.21305,2105.3,2105.2,10.77695]
[1617650506981,7.12,2105.3,2105.2,10.77695]
[1617650507181,4.21305,2105.3,2105.2,10.77695]
[1617650512193,5.15705,2105.3,2105.2,10.77695]
[1617650512391,4.21305,2105.3,2105.2,10.77695]
[1617650516402,4.21305,2105.3,2105.2,8.77695]
[1617650517003,7.12,2105.3,2105.2,8.77695]
[1617650518105,4.21305,2105.3,2105.2,8.77695]
[1617650519711,4.21305,2105.3,2105.2,10.77695]
[1617650529114,7.12,2105.3,2105.2,8.77695]
[1617650543542,4.21305,2105.3,2105.2,8.77695]
[1617650544341,4.21305,2105.3,2105.2,10.77695]
[1617650544741,4.21305,2105.3,2105.2,11.72815]
[1617650544944,4.21305,2105.3,2105.2,10.77695]
[1617650548145,5e-05,2105.3,2105.2,10.77695]
[1617650548347,2.90695,2106.3,2106.1,79.4174]
[1617650548548,2.90695,2106.3,2106.1,2.0464]
[1617650548946,2.90695,2106.3,2106.2,5.96]
[1617650549345,2.90695,2106.3,2106.2,8.86695]
[1617650549546,1.01877228,2106.5,2106.2,8.86695]
[1617650549747,0.05556959,2106.6,2106.3,65.3102]
[1617650549948,0.05556055,2106.9,2106.3,65.3102]
[1617650550149,0.05556055,2106.9,2106.4,5.88]
[1617650550350,0.27780277,2107.1,2106.4,5.88]
[1617650550351,0.05555779,2107.1,2106.4,5.88]
[1617650550750,0.05555779,2107.1,2106.3,5.96]
[1617650550949,0.05555779,2107.1,2106.5,5.86]
[1617650551153,0.05555572,2107.2,2107.1,70.619]
[1617650551349,0.05555572,2107.2,2107.1,75.48995]
[1617650551550,0.9366,2107.2,2107.1,75.48995]
[1617650551749,0.9366,2107.2,2107.1,81.24995]
[1617650551949,1.0,2107.5,2107.1,81.24995]
[1617650552350,65.2599,2107.3,2107.1,10.63095]
[1617650552550,65.2599,2107.3,2107.1,8.66695]
[1617650552750,1.0,2107.5,2107.1,8.66695]
[1617650553352,2.90695,2107.2,2107.1,8.66695]
[1617650553552,4.66345,2107.2,2107.1,8.66695]
[1617650555151,4.66345,2107.2,2107.1,5.76]
[1617650555852,68.7413,2107.1,2106.7,5.97]
[1617650556052,68.7413,2107.1,2106.6,2.90695]
[1617650556251,68.7413,2107.1,2106.1,12.8051]
[1617650556252,68.79685903,2107.1,2106.7,5.73]
[1617650556651,0.05555923,2107.0,2106.2,5.94]
[1617650556852,0.44560435,2106.9,2106.8,5.71]
[1617650557251,69.40970653,2107.1,2106.2,5.84]
[1617650557451,2.90695,2106.9,2106.2,5.84]
[1617650557652,2.90695,2106.9,2106.8,5.93]
[1617650557851,2.90695,2106.9,2106.2,5.94]
[1617650558250,2.90695,2106.9,2106.8,5.8]
[1617650558451,2.90695,2106.9,2106.2,5.85]
[1617650558851,2.90695,2106.9,2106.8,5.16]
[1617650559053,2.90695,2106.9,2106.3,77.3322]
[1617650559452,3.85615,2106.9,2106.8,2.90695]
[1617650559653,2.90695,2106.9,2106.8,2.90695]
[1617650559853,2.90695,2106.9,2106.8,4.46695]
[1617650562457,62.0346,2107.0,2106.8,4.46695]
[1617650562859,0.05557776,2107.1,2106.8,4.46695]
[1617650563058,0.27788879,2107.3,2106.8,4.46695]
[1617650563059,0.05557409,2107.2,2106.8,4.46695]
[1617650563465,2.96252322,2107.4,2107.1,2.90695]
[1617650563964,2.96252322,2107.4,2107.2,5.9]
[1617650564167,0.05557325,2107.3,2107.2,5.9]
[1617650565369,2.96252325,2107.3,2107.2,5.9]
[1617650565568,65.3654,2107.2,2106.5,5.93]
[1617650565770,2.7935,2107.2,2106.5,5.93]
[1617650565970,0.0555763,2107.1,2106.0,68.9048]
[1617650566170,0.0555763,2107.1,2106.6,5.78]
[1617650566569,0.0555763,2107.1,2106.4,5.91]
[1617650566770,0.0555763,2107.1,2106.1,1.86]
[1617650566969,0.0555763,2107.1,2106.7,5.81]
[1617650567170,0.05563898,2106.9,2106.5,5.93]
[1617650567370,0.05563898,2106.9,2106.8,2.90695]
[1617650567570,0.05563898,2106.9,2106.8,8.63695]
[1617650567770,0.05563898,2106.9,2106.8,2.90695]
[1617650568171,0.05563898,2106.9,2106.8,8.86695]
[1617650569472,2.96258898,2106.9,2106.8,8.86695]
[1617650570675,0.05563898,2106.9,2106.8,8.86695]
[1617650572479,1.0,2107.5,2106.9,71.7221]
[1617650572680,2.0,2108.9,2106.9,71.7221]
[1617650572681,30.0,2111.1,2106.9,2.0]
[1617650572880,69.5424,2109.7,2107.8,60.5111]
[1617650573080,69.5424,2109.7,2107.8,62.2319]
[1617650573280,69.5424,2109.7,2107.9,5.74]
[1617650573480,2.90695,2108.3,2108.0,2.90695]
[1617650573880,2.90695,2108.3,2108.0,8.77695]
[1617650574883,2.90695,2108.3,2108.0,70.33985]
[1617650575086,71.3801,2108.9,2108.0,70.33985]
[1617650575485,2.90695,2108.8,2108.0,70.33985]
[1617650577590,2.90695,2108.3,2108.0,70.33985]
[1617650578091,2.90695,2108.3,2108.0,8.77695]
[1617650578292,2.90695,2108.3,2108.0,5.87]
[1617650578490,69.21459518,2108.1,2108.0,5.87]
[1617650578793,72.01939518,2108.1,2107.5,5.92]
[1617650579192,72.01939518,2108.1,2108.0,5.89]
[1617650579392,72.01939518,2108.1,2107.5,5.72]
[1617650579792,72.01939518,2108.1,2108.0,5.77]
[1617650580192,72.01939518,2108.1,2107.6,5.81]
[1617650580392,72.01939518,2108.1,2108.0,5.81]
[1617650580792,72.01939518,2108.1,2107.7,5.88]
[1617650580993,69.21459518,2108.1,2107.4,1.49]
[1617650581194,69.21459518,2108.1,2107.6,5.83]
[1617650581393,69.21459518,2108.1,2107.8,5.78]
[1617650581593,65.3143,2108.1,2108.0,2.90695]
[1617650581793,2.90695,2108.3,2108.0,2.90695]
[1617650581993,2.90695,2108.3,2108.0,3.24695]
[1617650582196,69.5096,2108.7,2108.0,3.24695]
[1617650582599,1.94843117,2109.0,2108.0,3.24695]
[1617650582794,1.94843117,2109.0,2108.4,61.6348]
[1617650583193,1.94843117,2109.0,2108.5,5.77]
[1617650583594,1.94843117,2109.0,2108.9,2.90695]
[1617650583994,1.94843117,2109.0,2108.9,8.75695]
[1617650584394,3.89436554,2109.2,2108.9,8.75695]
[1617650584994,2.17566554,2109.2,2108.9,8.75695]
[1617650585194,1.46536554,2109.2,2108.9,8.75695]
[1617650585695,1.46536554,2109.2,2108.9,10.75695]
[1617650588497,1.46536554,2109.2,2109.0,78.5293]
[1617650588897,1.46536554,2109.2,2109.1,5.7]
[1617650592200,12.0,2109.9,2109.1,5.7]
[1617650592601,12.0,2109.9,2109.6,70.9642]
[1617650593002,12.0,2109.9,2109.7,5.71]
[1617650593402,75.9789,2109.8,2109.1,5.69]
[1617650593602,2.90695,2109.4,2108.9,2.90695]
[1617650593803,5.07785,2109.4,2108.9,2.90695]
[1617650594002,5.07785,2109.4,2109.2,5.86]
[1617650594205,5.07785,2109.4,2109.1,5.81]
[1617650594403,5.07785,2109.4,2108.9,2.90695]
[1617650594603,5.07785,2109.4,2109.3,5.97]
[1617650594805,5.07785,2109.4,2109.2,5.7]
[1617650595007,5.07785,2109.4,2109.0,5.92]
[1617650595206,5.07785,2109.4,2109.3,5.79]
[1617650595406,5.07785,2109.4,2109.0,5.8]
[1617650595606,2.90695,2109.1,2109.0,5.8]
[1617650595806,2.90695,2109.1,2108.9,2.90695]
[1617650596007,2.90695,2109.1,2109.0,5.7]
[1617650599710,2.90695,2109.4,2109.0,5.7]
[1617650600510,2.90695,2109.4,2109.3,55.485]
[1617650600910,2.90695,2109.4,2109.3,61.205]
[1617650601611,2.90695,2109.4,2109.3,64.11195]
[1617650603514,2.90695,2109.4,2109.3,8.62695]
[1617650612024,2.90695,2109.4,2109.3,5.72]
[1617650612625,70.2755,2109.3,2109.0,5.69]
[1617650612828,70.2755,2109.3,2108.0,58.6087]
[1617650613027,70.2755,2109.3,2108.1,5.8]
[1617650613226,70.2755,2109.3,2109.1,5.69]
[1617650613525,70.2755,2109.3,2108.2,5.95]
[1617650613726,2.90695,2108.7,2108.5,2.90695]
[1617650613925,5.08645,2108.7,2108.5,2.90695]
[1617650614125,5.08645,2108.7,2108.6,5.83]
[1617650614926,5.08645,2108.7,2108.4,5.91]
[1617650615127,5.08645,2108.7,2108.6,5.94]
[1617650615425,5.08645,2108.7,2108.5,5.97]
[1617650615629,5.08645,2108.7,2108.5,8.87695]
[1617650615831,5.08645,2108.7,2108.6,1.7]
[1617650616028,5.08645,2108.7,2108.5,2.90695]
[1617650616428,5.08645,2108.7,2108.6,5.76]
[1617650617331,2.90695,2108.7,2108.6,5.76]
[1617650624136,1.8236,2110.3,2108.6,5.76]
[1617650624335,31.1010519,2111.8,2108.6,7.7506]
[1617650624336,2.0,2110.8,2108.6,7.7506]
[1617650624535,59.876,2110.5,2109.0,75.6408]
[1617650624737,59.876,2110.5,2109.1,5.69]
[1617650624937,59.876,2110.5,2109.1,8.435]
[1617650625138,2.0,2110.1,2109.1,8.435]
[1617650625737,2.0,2110.1,2109.2,2.90695]
[1617650626140,2.0,2110.1,2109.3,5.91]
[1617650627841,2.90695,2109.4,2109.3,5.91]
[1617650636454,5.05735,2109.4,2109.3,5.91]
[1617650636851,5.05735,2109.4,2108.7,5.96]
[1617650637253,5.05735,2109.4,2109.3,5.97]
[1617650637452,5.05735,2109.4,2108.7,5.96]
[1617650637853,2.1504,2109.4,2109.3,5.82]
[1617650638053,2.1504,2109.4,2109.2,2.90695]
[1617650638455,2.1504,2109.4,2109.3,5.88]
[1617650639155,3.1074,2109.4,2109.3,5.88]
[1617650639355,2.1504,2109.4,2109.3,5.88]
[1617650639756,5.05735,2109.4,2109.3,5.88]
[1617650641058,6.01235,2109.4,2109.3,5.88]
[1617650641261,5.05735,2109.4,2109.3,5.88]
[1617650644863,5.05735,2109.4,2108.7,5.91]
[1617650645064,5.05735,2109.4,2109.3,5.93]
[1617650645465,5.05735,2109.4,2108.7,5.72]
[1617650645664,5.05735,2109.4,2109.3,5.79]
[1617650646065,5.05735,2109.4,2108.7,5.93]
[1617650646266,5.05735,2109.4,2109.3,5.82]
[1617650646665,5.05735,2109.4,2108.7,5.93]
[1617650647066,12.0,2109.9,2108.7,5.93]
[1617650647266,12.0,2109.9,2109.1,64.5561]
[1617650647668,12.0,2109.9,2109.2,5.8]
[1617650647867,12.0,2109.9,2109.4,2.90695]
[1617650648268,12.0,2109.9,2109.5,5.72]
[1617650649969,2.90695,2109.6,2109.5,5.72]
[1617650654374,2.90695,2109.6,2108.8,5.77]
[1617650654772,2.90695,2109.6,2109.5,5.78]
[1617650654971,2.90695,2109.6,2108.8,5.84]
[1617650655372,2.90695,2109.6,2109.5,5.94]
[1617650655573,2.90695,2109.6,2108.8,5.87]
[1617650655974,2.90695,2108.9,2108.2,13.2197]
[1617650656174,4.69645,2108.9,2108.2,13.2197]
[1617650656574,4.69645,2108.9,2108.8,5.72]
[1617650656776,4.69645,2108.9,2108.8,66.2089]
[1617650656976,1.7895,2108.9,2108.8,66.2089]
[1617650657175,14.1378,2109.9,2108.8,72.0589]
[1617650657975,14.1378,2109.9,2109.2,2.90695]
[1617650658174,14.1378,2109.9,2108.8,72.0589]
[1617650658375,14.1378,2109.9,2109.3,5.74]
[1617650658774,14.1378,2109.9,2108.9,5.92]
[1617650659876,14.1378,2109.9,2109.0,2.90695]
[1617650660376,14.1378,2109.9,2109.1,5.95]
[1617650660978,0.66782438,2109.7,2109.1,5.95]
[1617650661276,0.66782924,2109.8,2109.1,5.95]
[1617650661678,0.66782666,2109.7,2109.1,5.95]
[1617650661879,2.90695,2109.2,2109.1,5.95]
[1617650664680,2.90695,2109.2,2108.3,5.83]
[1617650665079,2.90695,2109.2,2109.1,5.86]
[1617650665279,2.90695,2109.2,2108.4,5.81]
[1617650665479,2.90695,2109.2,2109.1,5.91]
[1617650665881,2.90695,2109.2,2108.5,5.91]
[1617650666280,2.90695,2109.2,2109.1,5.94]
[1617650666281,3.57515491,2109.2,2109.1,5.94]
[1617650666481,3.57515491,2109.2,2108.6,5.94]
[1617650666683,2.90695,2109.2,2109.1,5.87]
[1617650667083,1.2197733,2109.1,2108.7,5.86]
[1617650667482,2.90695,2109.2,2108.1,74.9649]
[1617650667483,3.45847746,2109.2,2108.3,3.75]
[1617650667684,3.45847746,2109.2,2108.8,5.68]
[1617650667883,1.21976699,2109.1,2108.8,5.68]
[1617650668083,2.90695,2108.9,2108.4,4.35]
[1617650668283,5.13165,2108.9,2108.6,4.5]
[1617650668482,5.13165,2108.9,2108.2,5.72]
[1617650668683,5.13165,2108.9,2108.5,5.74]
[1617650668884,5.13165,2108.9,2108.7,5.95]
[1617650669085,5.13165,2108.9,2108.2,5.78]
[1617650669283,5.13165,2108.9,2108.6,5.9]
[1617650669483,5.13165,2108.9,2108.8,5.78]
[1617650669684,7.13165,2108.9,2108.3,5.92]
[1617650669884,7.13165,2108.9,2108.7,5.77]
[1617650670087,7.13165,2108.9,2108.8,4.16]
[1617650670484,7.79992759,2108.9,2108.3,5.86]
[1617650670684,7.79992759,2108.9,2108.8,5.95]
[1617650671084,7.79992759,2108.9,2108.4,5.81]
[1617650671284,7.79992759,2108.9,2108.8,5.79]
[1617650671685,7.79992759,2108.9,2108.5,5.74]
[1617650671885,7.79992759,2108.9,2108.8,5.96]
[1617650672285,7.79992759,2108.9,2108.6,5.76]
[1617650672487,7.79992759,2108.9,2108.8,5.7]
[1617650672688,7.13165,2108.9,2108.8,5.7]
[1617650672886,7.13165,2108.9,2108.7,5.72]
[1617650673086,7.13165,2108.9,2108.8,5.9]
[1617650673485,75.5765,2108.8,2108.4,5.54]
[1617650673686,2.0,2108.7,2107.0,58.6432]
[1617650673886,5.70699676,2108.7,2108.5,5.91]
[1617650674087,2.90695,2108.6,2108.5,5.91]
[1617650674285,2.90695,2108.6,2107.3,2.90695]
[1617650674286,6.59020787,2108.6,2107.3,2.90695]
[1617650674485,6.59020787,2108.6,2108.5,5.56]
[1617650674686,6.02220578,2108.6,2108.5,5.56]
[1617650674886,4.02220578,2108.6,2107.3,2.90695]
[1617650675088,2.0,2108.5,2107.7,5.83]
[1617650675286,2.0,2108.5,2107.5,5.95]
[1617650675486,0.66922919,2108.0,2107.3,2.90695]
[1617650675686,3.08182919,2108.0,2107.8,5.87]
[1617650676093,2.90695,2107.9,2107.4,5.69]
[1617650676289,2.90695,2107.9,2107.3,2.90695]
[1617650676490,3.57618739,2107.9,2107.3,2.90695]
[1617650676687,3.57618739,2107.9,2107.5,5.77]
[1617650676887,3.57618739,2107.9,2107.4,5.91]
[1617650677091,3.57618739,2107.9,2107.3,2.90695]
[1617650677291,3.57618739,2107.9,2107.4,5.83]
[1617650678093,2.90695,2107.5,2107.4,5.83]
[1617650678295,5.30425,2107.5,2107.4,5.83]
[1617650678500,5.30425,2107.5,2106.7,5.77]
[1617650678696,5.30425,2107.5,2107.4,5.86]
[1617650678994,5.30425,2107.5,2106.7,5.78]
[1617650679395,5.30425,2107.5,2107.4,5.9]
[1617650679595,5.30425,2107.5,2106.8,5.97]
[1617650679999,5.30425,2107.5,2107.4,5.82]
[1617650680198,5.30425,2107.5,2106.9,5.71]
[1617650680596,5.30425,2107.5,2106.5,2.571]
[1617650680597,5.30425,2107.5,2107.4,3.96]
[1617650680797,5.30425,2107.5,2107.0,5.28]
[1617650680996,5.97353214,2107.5,2107.0,5.28]
[1617650681197,5.97353214,2107.5,2107.4,5.76]
[1617650681399,5.97353214,2107.5,2107.1,5.09]
[1617650681800,5.97353214,2107.5,2107.4,5.71]
[1617650681999,5.97353214,2107.5,2107.2,0.02]
[1617650682399,5.97353214,2107.5,2107.4,5.73]
[1617650682601,5.97353214,2107.5,2107.3,3.98]
[1617650683001,5.97353214,2107.5,2107.4,5.94]
[1617650683202,5.97353214,2107.5,2106.9,3.44]
[1617650683401,5.97353214,2107.5,2106.4,3.56]
[1617650683601,5.30425,2107.5,2107.4,5.92]
[1617650684006,5.30425,2107.5,2106.5,4.21]
[1617650684206,2.3973,2107.5,2107.4,5.81]
[1617650684406,11.0,2107.5,2107.1,5.85]
[1617650684608,12.7517,2107.5,2107.1,5.85]
[1617650684807,13.7035,2107.5,2106.5,2.90695]
[1617650685008,13.7035,2107.5,2107.2,5.76]
[1617650685409,13.7035,2107.5,2106.7,5.69]
[1617650685607,67.5965,2106.9,2105.5,4.571]
[1617650685807,70.2232,2106.9,2106.8,5.95]
[1617650686008,2.6267,2106.9,2106.8,5.95]
[1617650686208,2.6267,2106.9,2105.7,2.90695]
[1617650686209,5.53365,2106.9,2105.7,2.90695]
[1617650686407,5.53365,2106.9,2106.8,5.71]
[1617650686808,5.53365,2106.9,2105.8,3.06]
[1617650687008,70.0724,2106.4,2105.7,2.90695]
[1617650687207,72.0387,2106.4,2105.7,2.90695]
[1617650687408,72.0387,2106.4,2105.8,5.82]
[1617650688209,2.90695,2105.9,2105.8,5.82]
[1617650688408,5.65195,2105.9,2105.8,5.82]
[1617650690109,2.90695,2105.9,2105.8,5.82]
[1617650695118,5.11775,2105.9,2105.6,5.98]
[1617650695516,5.11775,2105.9,2105.8,5.8]
[1617650695716,5.11775,2105.9,2105.6,5.8]
[1617650695916,67.4537,2105.8,2104.2,5.69]
[1617650696317,67.4537,2105.8,2105.7,5.73]
[1617650696517,67.4537,2105.8,2104.6,2.90695]
[1617650696717,67.4537,2105.8,2104.7,5.59]
[1617650696918,67.4537,2105.8,2105.7,5.7]
[1617650697118,67.4537,2105.8,2104.6,2.90695]
[1617650697318,67.4537,2105.8,2104.7,5.71]
[1617650697519,67.4537,2105.8,2105.7,5.97]
[1617650697718,2.0,2107.1,2105.7,5.97]
[1617650697719,69.2862,2106.6,2105.7,5.97]
[1617650697920,69.2862,2106.6,2105.5,1.9808]
[1617650698119,69.2862,2106.6,2105.8,5.9]
[1617650698321,69.2862,2106.6,2105.9,2.90695]
[1617650698720,69.2862,2106.6,2105.9,8.63695]
[1617650699118,69.2862,2106.6,2105.9,2.90695]
[1617650699318,69.2862,2106.6,2106.0,5.94]
[1617650699519,69.2862,2106.6,2106.0,8.5326]
[1617650699718,69.2862,2106.6,2106.0,10.5326]
[1617650700319,69.2862,2106.6,2106.2,2.90695]
[1617650700719,69.2862,2106.6,2106.3,5.69]
[1617650700920,0.9423,2106.7,2106.3,5.69]
[1617650701130,0.9423,2106.7,2106.1,5.72]
[1617650701325,2.8217,2106.7,2106.1,5.72]
[1617650701520,58.6556,2106.1,2105.1,5.56]
[1617650701720,60.6974,2106.1,2104.4,0.9363]
[1617650701925,2.0418,2106.1,2105.7,5.92]
[1617650702125,2.0418,2106.1,2105.2,5.81]
[1617650702320,2.0418,2106.1,2105.5,80.81155]
[1617650702522,2.0418,2106.1,2105.8,5.9]
[1617650702722,67.3998,2106.9,2105.7,5.75]
[1617650702928,2.2848,2106.7,2105.6,0.18]
[1617650703123,2.2848,2106.7,2105.9,5.97]
[1617650703323,79.2974,2106.3,2105.8,5.85]
[1617650703524,79.2974,2106.3,2105.6,5.93]
[1617650703721,79.2974,2106.3,2106.0,5.91]
[1617650703921,79.2974,2106.3,2105.9,4.98]
[1617650704123,79.2974,2106.3,2105.7,5.88]
[1617650704323,79.2974,2106.3,2106.1,5.88]
[1617650704523,79.2974,2106.3,2106.0,5.13]
[1617650704723,79.2974,2106.3,2105.8,5.21]
[1617650704925,79.2974,2106.3,2105.2,2.90695]
[1617650704926,79.2974,2106.3,2106.2,5.91]
[1617650705125,79.2974,2106.3,2106.1,5.95]
[1617650705330,79.2974,2106.3,2105.9,5.94]
[1617650705528,79.2974,2106.3,2106.2,5.93]
[1617650705729,81.2974,2106.3,2105.2,2.90695]
[1617650705929,81.2974,2106.3,2106.0,5.95]
[1617650706131,81.2974,2106.3,2106.2,5.97]
[1617650706329,84.20435,2106.3,2106.2,5.97]
[1617650706530,84.20435,2106.3,2106.1,5.97]
[1617650706730,84.20435,2106.3,2106.2,3.45]
[1617650707129,84.20435,2106.3,2105.0,3.76]
[1617650707333,84.20435,2106.3,2106.2,2.92]
[1617650707733,84.20435,2106.3,2105.1,4.27]
[1617650707933,84.20435,2106.3,2106.2,4.5115]
[1617650708333,84.20435,2106.3,2105.2,0.18]
[1617650708533,84.20435,2106.3,2106.2,5.73]
[1617650708934,84.20435,2106.3,2105.3,0.58]
[1617650709135,84.20435,2106.3,2106.2,5.93]
[1617650709334,34.90695,2106.3,2104.8,5.71]